bitfinex/quotes_ETHUSD_20251221
["timestamp","ask_amount","ask_price","bid_price","bid_amount"]
[1766300604927,0.81574006,2980.9,2980.3,0.3437]
[1766300605126,0.81574006,2980.9,2980.3,1.2741]
[1766300611943,0.81574006,2980.9,2980.3,0.9304]
[1766300612139,0.81574006,2980.9,2980.4,0.3437]
[1766300612451,0.81574006,2980.9,2980.4,1.2741]
[1766300613143,0.81574006,2980.9,2980.5,0.3437]
[1766300613739,0.81574006,2980.9,2980.4,0.9304]
[1766300616749,4.17044381,2980.9,2980.3,0.3447]
[1766300618341,4.17044381,2980.9,2980.3,0.001]
[1766300624853,4.36483392,2981.0,2980.3,0.001]
[1766300625234,4.36483392,2981.0,2980.3,0.3544]
[1766300628157,4.36483392,2981.0,2980.3,0.001]
[1766300629062,4.36483392,2981.0,2980.3,0.3544]
[1766300633871,4.36483392,2981.0,2980.3,0.001]
[1766300634060,0.81593268,2980.9,2980.3,0.001]
[1766300639286,4.17062599,2980.9,2980.3,0.001]
[1766300641576,0.81593268,2980.9,2980.3,0.3544]
[1766300641764,3.3566193,2981.0,2980.3,1.3041]
[1766300644844,6.7112386,2981.0,2980.1,1.44921188]
[1766300644961,4.20918161,2980.8,2979.9,0.001]
[1766300645283,0.44,2980.7,2980.3,0.001]
[1766300645454,0.47354819,2980.7,2979.9,0.001]
[1766300645654,0.60271975,2980.6,2979.9,0.001]
[1766300647081,3.35514175,2980.5,2979.9,0.001]
[1766300667216,3.35714175,2980.5,2979.9,0.001]
[1766300673097,6.7122835,2980.5,2979.9,0.001]
[1766300674230,6.74583169,2980.5,2979.9,0.001]
[1766300674402,0.72141047,2980.4,2979.9,0.001]
[1766300675408,0.47354819,2980.3,2979.5,0.001]
[1766300675608,4.20918161,2980.2,2979.5,0.001]
[1766300675826,0.03354819,2980.1,2979.5,0.001]
[1766300676134,0.42427298,2980.0,2979.5,0.001]
[1766300676334,3.3558173,2979.9,2979.5,0.001]
[1766300676549,0.03354819,2979.8,2979.5,0.001]
[1766300677723,0.03354819,2979.8,2979.1,0.001]
[1766300678051,0.443,2979.7,2979.1,0.001]
[1766300678403,3.35615518,2979.6,2979.1,0.001]
[1766300678629,0.37991552,2979.5,2979.1,0.001]
[1766300679042,1.38857146,2979.5,2979.1,0.001]
[1766300679405,0.03354819,2979.4,2979.1,0.001]
[1766300680301,1.42211965,2979.5,2979.1,0.001]
[1766300680534,1.38857146,2979.5,2979.1,0.001]
[1766300686942,1.38857146,2979.5,2979.2,0.3462]
[1766300687249,1.38857146,2979.5,2979.2,0.9323]
[1766300687411,1.38857146,2979.5,2979.3,1.2785]
[1766300696279,1.38857146,2979.5,2979.3,1.2805]
[1766300697469,1.38857146,2979.5,2979.3,0.002]
[1766300700957,0.37991552,2979.5,2979.3,0.002]
[1766300701353,0.37991552,2979.5,2979.3,0.3482]
[1766300701542,1.00865594,2979.6,2979.3,1.2805]
[1766300702153,1.00865594,2979.6,2979.4,0.3462]
[1766300705672,0.001,2979.5,2979.3,0.9343]
[1766300706170,0.001,2979.5,2979.3,0.002]
[1766300706668,0.001,2979.5,2979.3,1.3602]
[1766300707073,0.3616,2979.5,2979.3,1.3602]
[1766300710570,0.36025749,2979.5,2979.3,1.3602]
[1766300711548,0.36025749,2979.5,2979.3,0.002]
[1766300713789,0.36125749,2979.5,2979.3,0.002]
[1766300718557,0.36125749,2979.5,2979.1,0.001]
[1766300720755,0.36125749,2979.5,2979.1,0.3616]
[1766300722586,0.36125749,2979.5,2979.1,1.3592]
[1766300728696,3.54761304,2980.1,2979.4,5.52805769]
[1766300728859,1.00857456,2979.8,2979.4,1.3161]
[1766300729065,1.00857456,2979.8,2979.5,0.352]
[1766300731593,4.36450617,2979.8,2979.5,0.352]
[1766300732094,1.00857456,2979.8,2979.4,0.9641]
[1766300734293,1.00857456,2979.8,2979.4,1.3161]
[1766300738498,1.00957456,2979.8,2979.4,1.3161]
[1766300746323,0.001,2979.8,2979.3,0.441]
[1766300746804,0.001,2979.8,2979.5,0.3456]
[1766300747010,0.001,2979.8,2979.6,1.2932]
[1766300747411,0.001,2979.8,2979.4,0.002]
[1766300747599,0.193,2979.8,2979.4,0.002]
[1766300750312,0.03354819,2979.7,2979.3,0.441]
[1766300750516,0.19,2979.6,2979.1,0.3466]
[1766300757320,4.27113193,2979.6,2979.1,0.001]
[1766300757522,8.48308962,2979.6,2979.0,0.002]
[1766300758928,4.27113193,2979.6,2979.0,0.002]
[1766300762424,0.91496151,2979.6,2979.0,0.002]
[1766300762624,4.36469522,2979.7,2979.0,0.002]
[1766300762925,4.36469522,2979.7,2979.0,0.3476]
[1766300768804,0.441,2979.6,2979.1,0.3477]
[1766300769833,0.441,2979.6,2979.0,0.9115]
[1766300775936,0.441,2979.6,2979.0,1.2592]
[1766300777641,1.00861525,2979.7,2979.1,0.3477]
[1766300777932,1.45061525,2979.7,2979.3,1.2572]
[1766300778134,1.45061525,2979.7,2979.2,0.3477]
[1766300778433,1.45061525,2979.7,2979.3,1.2572]
[1766300800740,1.45061525,2979.7,2979.4,0.3388]
[1766300801544,0.442,2979.7,2979.4,0.3388]
[1766300803257,0.442,2979.7,2979.3,0.9614]
[1766300813780,0.442,2979.8,2979.5,0.3388]
[1766300813979,0.442,2979.8,2979.6,0.9614]
[1766300814149,0.442,2979.8,2979.7,0.3388]
[1766300814949,0.001,2979.8,2979.7,0.3388]
[1766300817506,0.001,2979.8,2979.6,0.9614]
[1766300817850,0.001,2979.8,2979.5,0.3388]
[1766300818458,0.001,2979.8,2979.5,1.3002]
[1766300822093,1.00852709,2980.1,2979.3,0.9614]
[1766300822276,0.002,2980.5,2980.0,4.21091215]
[1766300822459,0.002,2980.5,2980.1,1.3002]
[1766300822786,0.751,2980.9,2980.4,0.3388]
[1766300822985,1.192,2980.9,2980.4,0.3388]
[1766300823584,1.192,2980.9,2980.4,1.34699494]
[1766300824284,0.78454819,2980.8,2980.4,1.00819494]
[1766300824490,0.75,2980.7,2980.2,0.3388]
[1766300824674,0.75,2980.7,2980.3,1.00819494]
[1766300827353,0.751,2980.7,2980.3,1.00819494]
[1766300834597,0.751,2980.7,2980.3,1.00919494]
[1766300837678,0.001,2980.7,2980.3,1.35209494]
[1766300846881,0.751,2980.7,2980.3,1.00919494]
[1766300855593,0.751,2980.7,2980.3,0.001]
[1766300855791,3.35594932,2980.7,2980.3,0.001]
[1766300855999,0.749,2980.6,2979.7,0.9263]
[1766300856221,0.44,2980.5,2979.7,0.9263]
[1766300856903,1.00837116,2980.4,2979.7,0.9263]
[1766300863237,4.36364288,2980.4,2979.7,0.9263]
[1766300863435,5.60037735,2980.4,2979.7,0.9263]
[1766300863735,4.59200619,2980.4,2979.7,0.9263]
[1766300863934,1.00837116,2980.3,2979.7,0.9263]
[1766300864844,1.00837116,2980.3,2979.6,0.349]
[1766300866337,4.36378359,2980.3,2979.6,0.349]
[1766300866527,5.30670737,2980.3,2979.6,0.349]
[1766300866733,4.29833621,2980.3,2979.6,0.349]
[1766300867461,1.00838132,2980.2,2979.6,0.349]
[1766300867959,1.00838132,2980.2,2979.6,1.2753]
[1766300868439,1.00838132,2980.2,2979.7,0.348]
[1766300869958,1.00838132,2980.2,2979.7,1.2743]
[1766300881160,1.00838132,2980.2,2979.9,0.9263]
[1766300881446,0.44,2980.3,2980.0,0.348]
[1766300881625,0.44,2980.3,2980.1,0.348]
[1766300882226,0.44,2980.3,2979.8,1.00838132]
[1766300882448,0.44,2980.3,2979.8,2.28268132]
[1766300882942,1.189,2980.3,2979.8,2.28268132]
[1766300883153,0.749,2980.2,2979.8,1.00838132]
[1766300883618,0.749,2980.2,2979.6,1.2753]
[1766300884045,0.749,2980.2,2979.7,1.00838132]
[1766300885332,0.749,2980.2,2979.7,2.31498132]
[1766300889358,0.749,2980.2,2979.8,0.3613]
[1766300893857,0.75,2980.2,2979.8,0.3613]
[1766300911068,0.75,2980.2,2979.8,0.3623]
[1766300941604,0.001,2980.2,2979.9,0.9556]
[1766300941819,3.3559631,2980.7,2979.8,0.001]
[1766300941982,0.75,2980.4,2979.8,0.3606]
[1766300942299,0.75,2980.4,2979.9,0.44]
[1766300944427,0.75,2980.4,2979.8,0.001]
[1766300944717,0.752,2980.2,2979.8,0.001]
[1766300979048,0.002,2980.2,2979.8,0.001]
[1766300979247,0.002,2980.2,2979.8,1.322]
[1766300980749,3.35529072,2980.4,2979.8,0.001]
[1766300981047,4.10729072,2980.4,2979.8,1.322]
[1766300982134,3.35529072,2980.4,2979.8,1.322]
[1766300982429,0.752,2980.3,2979.8,1.322]
[1766300984248,0.753,2980.3,2979.8,1.322]
[1766300992660,0.753,2980.3,2979.8,0.001]
[1766300996959,0.753,2980.3,2979.8,0.3566]
[1766301000956,0.753,2980.3,2979.8,1.322]
[1766301002082,0.001,2980.3,2979.9,0.3556]
[1766301002378,0.753,2980.3,2979.9,0.3556]
[1766301002571,0.753,2980.3,2979.8,0.001]
[1766301003155,0.753,2980.3,2979.8,0.3566]
[1766301004388,1.193,2980.3,2979.8,0.3566]
[1766301005079,0.753,2980.3,2979.8,0.3566]
[1766301005286,1.193,2980.3,2979.8,0.3566]
[1766301005657,1.193,2980.3,2979.9,0.9654]
[1766301018493,0.753,2980.3,2979.9,0.9654]
[1766301018699,1.193,2980.3,2979.9,0.9654]
[1766301019895,4.548367,2980.3,2979.9,0.9654]
[1766301020101,0.752,2980.2,2979.9,0.9654]
[1766301023001,0.752,2980.2,2979.8,0.001]
[1766301023301,0.752,2980.2,2979.8,0.9664]
[1766301031020,0.752,2980.1,2979.8,0.9664]
[1766301031316,0.752,2980.1,2979.8,0.001]
[1766301046258,0.03354819,2980.0,2979.7,1.00039596]
[1766301046453,0.751,2980.0,2979.6,0.001]
[1766301046770,1.00039596,2979.9,2979.6,0.001]
[1766301053191,1.75139596,2979.9,2979.6,0.001]
[1766301053491,0.751,2979.9,2979.6,0.001]
[1766301053792,1.00851692,2979.8,2979.6,0.001]
[1766301073662,0.441,2980.0,2979.7,0.3473]
[1766301073831,0.441,2980.2,2979.7,1.2765]
[1766301074040,0.441,2980.2,2979.8,1.2765]
[1766301074238,1.44951692,2980.2,2979.8,1.2765]
[1766301074638,2.39671692,2980.2,2979.8,1.2765]
[1766301076461,5.75221243,2980.2,2979.8,0.3473]
[1766301076631,0.57532124,2980.1,2979.8,0.3473]
[1766301076830,1.52252124,2980.1,2979.6,1.2775]
[1766301077040,0.9472,2980.1,2979.6,1.2775]
[1766301077440,0.9472,2980.1,2979.6,0.3483]
[1766301079560,0.9482,2980.1,2979.6,0.3483]
[1766301080757,0.9482,2980.1,2979.6,0.001]
[1766301082171,1.3892,2980.1,2979.6,0.001]
[1766301082561,0.001,2980.1,2979.6,0.001]
[1766301082756,0.9472,2980.0,2979.6,0.001]
[1766301084076,0.9472,2980.0,2979.6,0.3483]
[1766301087869,0.9482,2980.0,2979.6,0.3483]
[1766301096366,0.001,2980.0,2979.6,0.9687]
[1766301096566,0.001,2980.0,2979.7,0.3552]
[1766301102873,0.001,2980.0,2979.7,1.3229]
[1766301104307,0.001,2980.0,2979.7,0.9677]
[1766301104475,0.001,2980.0,2979.7,1.3229]
[1766301112102,0.001,2980.1,2979.7,1.3229]
[1766301112290,0.001,2980.1,2979.8,0.3552]
[1766301112495,0.001,2980.1,2979.9,0.3552]
[1766301112917,0.001,2980.0,2979.9,0.3552]
[1766301124149,0.001,2980.0,2979.7,0.3552]
[1766301124549,0.001,2980.0,2979.7,1.3229]
[1766301125017,0.001,2980.0,2979.7,0.9677]
[1766301125213,0.001,2980.0,2979.8,0.3722]
[1766301131841,0.001,2980.0,2979.6,0.442]
[1766301132141,0.001,2980.0,2979.6,0.8142]
[1766301132440,0.9782,2980.0,2979.6,0.8142]
[1766301136645,0.9782,2980.0,2979.6,0.442]
[1766301143450,0.9782,2980.0,2979.6,0.8142]
[1766301182389,0.001,2980.0,2979.6,1.3567]
[1766301182590,0.001,2980.0,2979.7,0.3433]
[1766301193812,0.001,2980.0,2979.7,1.3385]
[1766301193978,0.001,2980.0,2979.7,0.9952]
[1766301194178,0.001,2980.0,2979.7,1.3511]
[1766301196120,0.001,2980.0,2979.7,0.3559]
[1766301221123,0.001,2980.0,2979.7,1.291]
[1766301221327,0.001,2980.0,2979.7,0.9351]
[1766301221633,0.001,2980.0,2979.8,0.3436]
[1766301241759,0.001,2980.0,2979.8,0.3456]
[1766301272284,0.001,2980.0,2979.8,0.002]
[1766301276186,0.9869,2980.0,2979.8,0.002]
[1766301295406,0.001,2980.0,2979.8,0.002]
[1766301330640,0.9879,2980.0,2979.8,0.002]
[1766301337772,0.9363,2979.9,2979.8,0.002]
[1766301339074,0.9363,2979.9,2979.6,0.001]
[1766301339287,0.9363,2979.9,2976.1,2.70543945]
[1766301339288,0.9363,2979.9,2979.1,0.001]
[1766301339463,1.00846946,2979.8,2979.1,0.3744]
[1766301339674,0.9363,2979.6,2979.1,0.3744]
[1766301340342,0.9466,2979.5,2979.1,0.3744]
[1766301342779,0.9466,2979.5,2979.1,0.001]
[1766301342780,0.9363,2979.4,2979.1,0.001]
[1766301343383,0.3744,2979.3,2979.1,0.001]
[1766301344899,0.3744,2979.3,2979.1,0.3744]
[1766301356914,0.001,2979.5,2979.1,0.3744]
[1766301357097,0.001,2979.5,2979.2,0.3734]
[1766301357412,0.9363,2979.4,2979.2,0.3734]
[1766301357617,0.001,2979.5,2979.2,0.3734]
[1766301357817,0.9363,2979.4,2979.2,0.3734]
[1766301358414,0.9363,2979.4,2979.3,0.3734]
[1766301358919,0.9363,2979.4,2979.3,0.19836875]
[1766301359118,0.001,2979.5,2979.3,0.19836875]
[1766301359515,0.9373,2979.5,2979.3,0.19836875]
[1766301359694,0.441,2979.7,2979.4,5.15670838]
[1766301360818,1.8736,2979.9,2979.4,5.53010838]
[1766301361120,0.441,2979.8,2979.4,5.53010838]
[1766301363526,0.001,2979.5,2979.4,5.53010838]
[1766301368223,0.001,2979.5,2979.4,1.318]
[1766301368797,0.001,2979.5,2979.4,0.3734]
[1766301371365,0.001,2979.5,2979.4,0.3754]
[1766301377578,5.35461784,2980.0,2979.4,1.357]
[1766301377766,0.441,2979.8,2979.5,0.3569]
[1766301379979,0.442,2979.8,2979.5,0.3569]
[1766301383578,0.001,2979.8,2979.5,0.3569]
[1766301383782,0.442,2979.8,2979.5,0.3569]
[1766301385599,0.001,2979.8,2979.5,0.3569]
[1766301385785,0.442,2979.8,2979.5,0.3569]
[1766301387686,0.442,2979.8,2979.5,1.2626]
[1766301388581,0.442,2979.8,2979.5,1.2646]
[1766301391795,0.001,2979.8,2979.5,0.9077]
[1766301392000,0.441,2979.9,2979.6,0.9057]
[1766301392195,0.441,2979.9,2979.6,1.2786]
[1766301394389,1.00953048,2980.0,2979.7,0.3729]
[1766301394594,0.001,2980.1,2979.8,1.2786]
[1766301397802,0.001,2979.9,2979.8,1.2786]
[1766301398974,0.001,2980.1,2979.8,1.2786]
[1766301399307,0.001,2980.1,2979.9,1.3182]
[1766301406208,0.001,2980.1,2979.8,0.002]
[1766301406389,1.3324,2980.1,2979.8,0.002]
[1766301409503,0.001,2980.1,2979.8,0.361]
[1766301411497,0.001,2980.1,2979.8,1.3202]
[1766301411689,0.001,2980.3,2980.1,0.359]
[1766301411880,0.441,2980.5,2980.1,1.3182]
[1766301412511,0.441,2980.5,2980.1,0.9592]
[1766301412712,0.441,2980.5,2980.2,0.359]
[1766301416017,0.443,2980.5,2980.2,0.359]
[1766301420429,0.002,2980.5,2980.2,1.3182]
[1766301425918,0.002,2980.5,2980.2,1.3267]
[1766301428418,0.002,2980.5,2980.3,0.3675]
[1766301428928,0.441,2980.6,2980.3,1.2812]
[1766301433538,0.002,2980.6,2980.3,0.3675]
[1766301433704,0.442,2980.6,2980.3,1.2812]
[1766301434704,0.9601,2980.7,2980.3,0.3675]
[1766301434705,0.001,2980.7,2980.3,0.3675]
[1766301434936,0.001,2980.9,2980.4,4.24239435]
[1766301435138,0.441,2980.9,2980.7,0.9137]
[1766301438337,0.441,2980.9,2980.6,0.3675]
[1766301438551,0.441,2980.9,2980.6,1.2848]
[1766301439748,0.441,2980.9,2980.6,0.9173]
[1766301439947,0.441,2980.9,2980.7,1.2723]
[1766301441746,0.001,2980.9,2980.7,1.2723]
[1766301442910,0.001,2980.9,2980.5,0.441]
[1766301443115,1.2811,2980.8,2980.2,1.2723]
[1766301443318,1.2811,2980.8,2980.3,0.355]
[1766301443649,1.2811,2980.8,2980.3,1.36315428]
[1766301443850,1.2811,2980.8,2980.3,2.28045428]
[1766301444230,1.2811,2980.8,2980.4,0.355]
[1766301444738,0.03354819,2980.8,2980.3,1.00815428]
[1766301444945,0.9093,2980.6,2980.1,0.356]
[1766301445143,1.2811,2980.6,2980.1,1.36415428]
[1766301445322,1.2811,2980.6,2980.1,2.28145428]
[1766301448460,1.2811,2980.6,2980.1,1.2733]
[1766301449162,1.2811,2980.6,2980.1,2.28152205]
[1766301449357,1.2831,2980.6,2980.1,2.28152205]
[1766301451862,1.2831,2980.6,2980.1,1.2733]
[1766301459764,1.2831,2980.6,2980.1,0.9183]
[1766301459957,1.2831,2980.6,2980.2,0.3419]
[1766301462672,0.9113,2980.6,2980.2,0.3419]
[1766301462873,0.9113,2980.6,2980.2,1.269]
[1766301464175,0.001,2980.9,2980.4,0.9271]
[1766301464471,0.44,2980.8,2980.5,1.269]
[1766301470076,0.44,2980.8,2980.5,0.3419]
[1766301472582,0.441,2980.8,2980.5,0.3419]
[1766301473582,0.001,2980.8,2980.5,0.3419]
[1766301478782,0.001,2980.8,2980.3,0.9271]
[1766301479081,0.001,2980.8,2980.6,0.3419]
[1766301479383,0.001,2980.8,2980.6,1.269]
[1766301486196,0.001,2980.8,2980.6,0.3419]
[1766301492996,0.13541966,2981.1,2980.6,0.3419]
[1766301493166,1.966e-05,2981.1,2980.6,0.9133]
[1766301493366,1.966e-05,2981.1,2980.7,1.2618]
[1766301494596,1.3595,2981.3,2980.7,1.2618]
[1766301494805,1.87486403,2981.3,2980.7,1.2618]
[1766301495297,2.88301154,2981.3,2980.7,1.2618]
[1766301497300,0.002,2981.1,2980.7,1.2618]
[1766301499503,0.002,2981.1,2980.7,0.3485]
[1766301499680,1.3585,2981.0,2980.5,0.001]
[1766301500093,1.3585,2981.0,2980.5,1.2628]
[1766301500291,1.3585,2981.0,2980.5,0.001]
[1766301500497,1.3585,2981.0,2980.6,1.2618]
[1766301500791,0.002,2981.1,2980.6,1.2618]
[1766301501098,0.002,2981.1,2980.5,0.001]
[1766301501276,0.002,2981.1,2980.6,1.2618]
[1766301501476,0.002,2981.1,2980.5,0.001]
[1766301501699,0.002,2981.1,2980.6,1.2618]
[1766301501898,0.002,2981.1,2980.6,0.9133]
[1766301502103,0.002,2981.1,2980.7,1.2618]
[1766301505412,0.002,2981.1,2980.8,0.3485]
[1766301505728,0.002,2981.1,2980.8,1.2618]
[1766301506416,0.002,2981.1,2980.8,0.9133]
[1766301506797,0.002,2981.1,2980.8,1.2618]
[1766301507615,0.002,2981.1,2980.8,0.9133]
[1766301507811,0.002,2981.1,2980.9,0.3485]
[1766301509115,0.44,2981.2,2980.5,0.001]
[1766301509283,0.44,2981.2,2980.5,0.9143]
[1766301509480,0.44,2981.2,2980.7,0.3485]
[1766301509691,0.44,2981.2,2980.9,0.3485]
[1766301511218,0.442,2981.2,2980.9,0.3485]
[1766301515321,0.002,2981.2,2980.9,0.3485]
[1766301515523,0.442,2981.2,2980.9,0.3485]
[1766301517125,1.7793,2981.2,2980.8,0.9133]
[1766301517419,0.442,2981.2,2980.9,0.3692]
[1766301517624,0.442,2981.2,2980.9,1.3361]
[1766301519099,0.442,2981.2,2980.6,0.001]
[1766301519297,0.442,2981.2,2980.7,1.3361]
[1766301522735,0.442,2981.2,2980.8,0.3692]
[1766301527209,0.442,2981.2,2980.8,0.3702]
[1766301527732,1.3373,2981.1,2980.8,0.001]
[1766301531239,0.9737,2981.1,2980.8,0.001]
[1766301539444,0.8056,2981.2,2980.8,0.001]
[1766301540051,0.8056,2981.2,2980.8,0.3702]
[1766301540252,0.8056,2981.2,2980.8,1.3371]
[1766301541566,0.442,2981.2,2980.8,1.3371]
[1766301543867,1.4157,2981.2,2980.8,1.3371]
[1766301549770,1.4157,2981.2,2980.8,0.001]
[1766301549971,1.2678,2980.9,2980.6,0.001]
[1766301550371,4.71068956,2981.2,2980.6,0.001]
[1766301550670,2.07440177,2981.1,2980.6,1.3643]
[1766301550841,1.2678,2981.0,2980.6,1.3643]
[1766301553352,1.2678,2981.0,2980.6,0.001]
[1766301555087,1.2678,2981.0,2980.6,0.3664]
[1766301556062,1.81677299,2981.1,2980.6,1.3643]
[1766301556267,0.2623873,2981.0,2980.6,1.3643]
[1766301575322,0.2643873,2981.0,2980.6,1.3643]
[1766301591437,0.002,2981.0,2980.6,1.2708]
[1766301598448,0.002,2981.0,2980.7,0.9044]
[1766301598653,0.002,2981.0,2980.8,1.2766]
[1766301602149,0.002,2981.0,2980.6,1.2776]
[1766301605761,0.947,2981.0,2980.6,1.2776]
[1766301610647,0.002,2981.0,2980.6,1.2776]
[1766301610837,0.002,2981.0,2980.6,0.9054]
[1766301611043,0.002,2981.0,2980.7,0.3379]
[1766301611346,0.002,2981.0,2980.7,1.2844]
[1766301619443,0.002,2981.0,2980.7,0.3379]
[1766301619647,0.61294738,2981.0,2980.7,0.3379]
[1766301619848,1.301,2980.9,2980.6,0.001]
[1766301624684,0.61294738,2981.0,2980.6,0.001]
[1766301624984,0.61294738,2981.0,2980.7,0.3606]
[1766301624985,0.002,2981.0,2980.7,0.3606]
[1766301630002,0.002,2981.0,2980.7,1.2889]
[1766301631799,0.002,2981.0,2980.6,0.001]
[1766301631976,0.002,2981.0,2980.8,1.2889]
[1766301636874,0.442,2981.1,2980.8,1.2889]
[1766301639201,0.002,2981.1,2980.8,1.2889]
[1766301639403,1.01011024,2981.2,2980.9,0.9863]
[1766301639576,1.01011024,2981.2,2981.0,1.3424]
[1766301640676,2.34301024,2981.2,2980.7,0.3561]
[1766301640875,1.01011024,2981.2,2980.7,0.9863]
[1766301641076,1.01011024,2981.2,2980.8,1.3424]
[1766301641282,1.01011024,2981.2,2980.8,0.3561]
[1766301641478,1.01011024,2981.2,2980.9,0.9863]
[1766301641694,1.01011024,2981.2,2981.0,0.3561]
[1766301641909,0.002,2981.2,2981.0,0.3561]
[1766301642922,0.002,2981.2,2981.0,1.3424]
[1766301646697,0.002,2981.2,2981.0,0.3561]
[1766301648316,0.002,2981.2,2980.8,0.9873]
[1766301648516,0.002,2981.2,2980.8,1.3434]
[1766301652998,1.01011024,2981.2,2980.8,1.3434]
[1766301653508,1.98681024,2981.2,2980.8,1.3434]
[1766301655029,2.34301024,2981.2,2980.8,0.001]
[1766301655831,1.3329,2981.1,2980.8,0.001]
[1766301657228,0.002,2981.2,2980.8,0.001]
[1766301657537,1.3329,2981.0,2980.8,0.001]
[1766301660322,0.002,2981.2,2980.8,0.001]
[1766301660518,1.3349,2981.2,2980.8,0.001]
[1766301663735,0.002,2981.2,2980.8,1.3434]
[1766301664235,0.9787,2981.2,2980.8,1.3434]
[1766301664432,1.3349,2981.2,2980.8,1.3434]
[1766301664605,1.3349,2981.2,2980.8,0.3571]
[1766301668841,0.002,2981.2,2980.8,0.001]
[1766301669139,1.3224,2981.1,2980.8,0.001]
[1766301669303,1.7624,2981.1,2980.8,0.001]
[1766301683250,0.44,2981.1,2980.8,0.001]
[1766301683455,0.44,2981.1,2980.8,1.2762]
[1766301693165,0.44,2981.1,2980.8,0.932]
[1766301693369,0.44,2981.1,2980.8,1.2736]
[1766301695373,0.442,2981.1,2980.8,1.2736]
[1766301696064,0.002,2981.1,2980.8,1.2736]
[1766301697578,0.002,2981.1,2980.8,0.932]
[1766301697772,0.002,2981.1,2980.9,0.3397]
[1766301702590,0.002,2981.1,2980.8,0.932]
[1766301704376,0.002,2981.1,2980.8,1.2717]
[1766301708289,0.002,2981.1,2980.8,1.2717]
[1766301712476,0.002,2981.1,2980.9,0.3397]
[1766301713893,0.442,2981.2,2980.9,1.299]
[1766301722505,0.442,2981.2,2980.8,0.001]
[1766301722700,0.442,2981.2,2980.8,0.3407]
[1766301722906,0.442,2981.2,2980.8,1.3]
[1766301731016,0.442,2981.2,2980.8,0.001]
[1766301731308,0.442,2981.2,2981.0,1.2825]
[1766301731811,1.00911024,2981.3,2981.1,1.2825]
[1766301734110,5.35646838,2981.3,2980.8,0.001]
[1766301734312,0.9931,2981.2,2980.8,0.001]
[1766301734486,1.3411,2981.1,2980.8,0.001]
[1766301734887,8.91946162,2981.3,2980.8,0.001]
[1766301735186,9.91256162,2981.3,2980.8,0.001]
[1766301735388,5.70446838,2981.3,2980.8,0.001]
[1766301737910,4.71136838,2981.3,2980.8,0.001]
[1766301738118,0.9951,2981.2,2980.8,0.001]
[1766301738490,1.3431,2981.2,2980.8,0.001]
[1766301741315,0.002,2981.2,2981.0,0.3548]
[1766301743124,4.14193389,2981.6,2981.1,0.9277]
[1766301743322,0.9277,2981.4,2981.2,0.3548]
[1766301748133,0.9277,2981.4,2981.1,0.9277]
[1766301748938,0.9277,2981.4,2981.1,1.2822]
[1766301752814,0.9277,2981.4,2981.1,0.3545]
[1766301753331,5.09931989,2981.6,2981.1,0.3545]
[1766301753830,0.002,2981.4,2981.1,0.3545]
[1766301754028,0.002,2981.4,2981.1,1.3007]
[1766301754632,0.002,2981.8,2981.3,0.9462]
[1766301755420,0.002,2981.8,2981.5,0.9406]
[1766301756132,0.002,2981.8,2981.6,1.00782576]
[1766301761137,0.002,2982.0,2981.6,1.94842576]
[1766301761318,1.3178,2982.0,2981.6,1.00782576]
[1766301761714,0.002,2982.0,2981.7,0.9406]
[1766301767171,0.002,2982.0,2981.6,1.00782576]
[1766301767469,0.002,2982.0,2981.7,0.9406]
[1766301770171,0.002,2982.0,2981.6,1.00782576]
[1766301770531,0.002,2982.2,2981.6,1.00782576]
[1766301770732,0.002,2982.2,2981.7,0.9406]
[1766301770942,0.002,2982.3,2981.6,1.44782576]
[1766301771138,0.002,2982.3,2981.7,0.9406]
[1766301771553,0.002,2982.3,2981.8,1.00772759]
[1766301771757,0.002,2982.3,2981.9,0.9406]
[1766301779678,0.3721,2982.3,2981.7,0.9406]
[1766301779886,5.52286,2982.3,2981.7,0.9406]
[1766301780065,5.52286,2982.3,2981.8,1.00772759]
[1766301780263,0.40364819,2982.2,2981.8,1.00772759]
[1766301780461,1.3158,2982.2,2981.7,0.9406]
[1766301795400,5.52143207,2982.2,2981.7,0.9406]
[1766301798098,4.20563207,2982.2,2981.6,0.441]
[1766301798398,0.3422,2981.9,2981.6,0.441]
[1766301803018,1.2768,2981.9,2981.6,0.441]
[1766301806905,0.9346,2981.9,2981.6,0.441]
[1766301807105,0.3422,2981.8,2981.6,0.441]
[1766301809115,1.2768,2981.8,2981.6,0.441]
[1766301811509,0.3585,2981.7,2981.6,0.441]
[1766301812286,1.3216,2981.7,2981.3,1.00777159]
[1766301812510,4.20563207,2981.4,2981.0,0.001]
[1766301812710,0.9631,2981.3,2981.0,0.001]
[1766301812884,0.3585,2981.1,2980.8,0.001]
[1766301815621,1.319,2981.1,2980.8,0.001]
[1766301816923,5.21361699,2981.2,2980.6,0.001]
[1766301816924,1.3283,2981.0,2980.6,0.001]
[1766301817113,1.3283,2980.9,2980.6,0.001]